Workbook

Sheet 部门整体
A1: 附件2：
A2: 2023年兰州新区经济发展局（统计局）整体支出绩效目标申报表
A3: （2023年度）
A4: 部门（单位）名称 | C4: 兰州新区经济发展局（统计局）
A5: 年度主要任务 | B5: 任务名称 | D5: 主要内容 | F5: 预算金额95144.05万元
F6: 总额 | G6: 财政拨款 | H6: 其他资金
B7: 任务1 | D7: 负责发展规划编制相关工作 | F7: =90+77.82+54 -> 221.82 | G7: =90+77.82+54 -> 221.82
B8: 任务2 | D8: 负责稳经济政策落实相关工作 | F8: =72.45+65+350+12000+1795.31+15+35+200 -> 14532.76 | G8: =72.45+65+350+12000+1795.31+15+35+200 -> 14532.76
B9: 任务3 | D9: 负责重点项目建设管理相关工作 | F9: =5000+290+3046+55796+11000 -> 75132 | G9: =5000+290+3046+55796+11000 -> 75132
B10: 任务4 | D10: 负责经济数据统计与运行分析相关工作 | F10: =262+30+15.58+8.21 -> 315.79 | G10: =262+30+15.58+8.21 -> 315.79
B11: 任务5 | D11: 负责粮食安全与保供稳价相关工作 | F11: =313.64+10+122.8+20 -> 466.44 | G11: =316.64+10+122.8+20 -> 469.44
B12: 任务6 | D12: 负责能源管理相关工作 | F12: =650+2500+40+26.24+1200 -> 4416.24 | G12: =650+2500+40+26.24 -> 3216.24
B13: 任务7 | D13: 负责信用体系建设相关工作
B14: 任务8 | D14: 负责营商环境改革发展相关工作 | F14: 40 | G14: 40
B15: 任务9 | D15: 负责移民搬迁安置相关工作 | F15: 19 | G15: 19
B16: 金额合计 | F16: =SUM(F7:F15) -> 95144.05 | G16: 93947.05 | H16: 0
A17: 年度总体目标 | B17: 目标1：负责发展规划编制相关工作
B18: 目标2：负责稳经济政策落实相关工作
B19: 目标3：负责重点项目建设管理相关工作
B20: 目标4：负责经济数据统计与运行分析相关工作
B21: 目标5：负责粮食安全与保供稳价相关工作
B22: 目标6：负责能源管理相关工作
B23: 目标7：负责信用体系建设相关工作
B24: 目标8：负责营商环境改革发展相关工作
B25: 目标9：负责移民搬迁安置相关工作
A26: 年度绩效指标 | B26: 一级指标 | C26: 二级指标 | E26: 三级指标 | G26: 指标值
B27: 产出指标 | C27: 数量指标 | E27: 保障机关运行数 | G27: 1个
E28: 责任领域内预算项目管理数 | G28: 31个
C29: 质量指标 | E29: 保障单位各科室日常运行情况 | G29: 正常运行
E30: 责任领域内预算资金执行率 | G30: ≥90%
E31: “三公”经费控制率 | G31: ≤100%
C32: 时效指标 | E32: 保障机关运行情况 | G32: 保障
E33: 责任领域内工作完成情况 | G33: 及时
C34: 成本指标 | E34: 合理控制一般公共预算支出 | G34: 合理控制
E35: 有效控制三公经费支出 | G35: 有效控制
B36: 效益指标 | C36: 经济效益指标 | E36: 指标1：增强新区综合经济实力 | G36: 增强
E37: 指标2：稳定市场价格 | G37: 稳定
C38: 社会效益指标 | E38: 指标1：推动新区经济社会高质量发展 | G38: 推动
E39: 指标2：改善新区中小企业营商环境 | G39: 改善
C40: 生态效益指标 | E40: 指标1：降低经济发展对新区生态环境的不良影响 | G40: 降低
E41: 指标2：优化新区营山环境 | G41: 优化
C42: 可持续影响指标 | E42: 指标1：持续推动新区经济社会高质量发展 | G42: 持续
E43: 指标2：持续优化新区营山环境 | G43: 持续
B44: 满意度 | C44: 服务对象 满意度指标 | E44: 指标1：服务对象满意度 | G44: ≥90%

Sheet 重大项目前期费（5000万）
A1: 2023年兰州新区项目支出绩效目标申报表
A2: （ 2023年度）
A3: 项目名称 | D3: 2023年重大项目前期费
A4: 主管部门及代码 | D4: 兰州新区经济发展局（统计局） | F4: 实施单位 | H4: 兰州新区经济发展局（统计局）
A5: 项目属性 | D5: 延续项目 | F5: 项目期 | H5: 1年
A6: 项目资金 （万元） | D6: 中期资金总额： | E6: 15000 | F6: 年度资金总额： | H6: 5000
D7: 其中：财政拨款 | E7: 15000 | F7: 其中：财政拨款 | H7: 5000
D8: 其他资金 | F8: 其他资金
A9: 总体 目标 | B9: 中期目标（2023年—2025年） | F9: 年度目标
B10: 目标1:每年年底前完成当年重大项目前期费下达 | F10: 目标1：于年底之前完成所有前期费资金下达；
B11: 目标2：督促项目建设单位年底前完成重大项目前期费资金支付。 | F11: 目标2：督促项目建设单位年底前完成重大项目前期费资金支付。
A12: 绩效 指标 | B12: 一级指标 | C12: 二级指标 | D12: 三级指标 | E12: 指标值 | F12: 二级指标 | G12: 三级指标 | I12: 指标值
B13: 产出指标 | C13: 数量指标 | D13: 资金安排至重大项目 | E13: 2 | F13: 数量指标 | G13: 资金安排至重大项目 | I13: 2
C14: 质量指标 | D14: 补助项目前期工作完成率 | E14: 100% | F14: 质量指标 | G14: 补助项目前期工作完成率 | I14: 100%
C15: 时效指标 | D15: 及时下达重大项目前期费 | E15: 及时 | F15: 时效指标 | G15: 及时下达重大项目前期费 | I15: 及时
C16: 成本指标 | D16: 成本控制率 | E16: ≤100% | F16: 成本指标 | G16: 成本控制额 | I16: ≤100%
B17: 效益指标 | C17: 经济效益 | D17: 形成实物投资量 | E17: ≥3亿元 | F17: 经济效益 | G17: 形成实物投资量 | I17: ≥1亿元
C18: 社会效益 | D18: 提高项目前期工作效率 | E18: 开工率100% | F18: 社会效益 | G18: 提高项目前期工作效率 | I18: 开工率100%
D19: 为新区高质量发展提供项目支撑 | E19: 有效提供 | G19: 为新区高质量发展提供项目支撑 | I19: 有效提供
C20: 可持续影响 | D20: 监督机制健全性 | E20: 健全 | F20: 可持续影响 | G20: 监督机制健全性 | I20: 健全
B21: 满意度 | C21: 服务对象 满意度 | D21: 企业满意度 | E21: ≥90% | F21: 服务对象 满意度 | G21: 企业满意度 | I21: ≥90%

Sheet 全省重大项目集中开工复工动员大会新区会场费用（65万）
A1: 2023年兰州新区项目支出绩效目标申报表
A2: （ 2023年度）
A3: 项目名称 | D3: 全省重大项目集中开工复工动员大会新区会场费用
A4: 主管部门及代码 | D4: 兰州新区经济发展局（统计局） | F4: 实施单位 | H4: 兰州新区经济发展局（统计局）
A5: 项目属性 | D5: 延续项目 | F5: 项目期 | H5: 1年
A6: 项目资金 （万元） | D6: 中期资金总额： | E6: 240 | F6: 年度资金总额： | H6: 65
D7: 其中：财政拨款 | E7: 240 | F7: 其中：财政拨款 | H7: 65
D8: 其他资金 | F8: 其他资金
A9: 总体 目标 | B9: 中期目标（2023年—2025年） | F9: 年度目标
B10: 目标1：按省政府要求完成当年重大项目集中开工活动新区分会场活动 | F10: 目标1：完成2次全省重大项目集中开工复工动员大会新会场活动
B11: 目标2：支付重大项目集中开工复工动员大会费用 | F11: 目标2：支付重大项目集中开工复工动员大会费用
B12: 目标3：为固定资产投资增长提供有力支撑 | F12: 目标3：为固定资产投资增长提供有力支撑
A13: 绩效 指标 | B13: 一级指标 | C13: 二级指标 | D13: 三级指标 | E13: 指标值 | F13: 二级指标 | G13: 三级指标 | I13: 指标值
B14: 产出指标 | C14: 数量指标 | D14: 会议次数 | E14: 6 | F14: 数量指标 | G14: 会议次数 | I14: 2
C15: 质量指标 | D15: 会务工作合格率 | E15: 100% | F15: 质量指标 | G15: 会务工作合格率 | I15: 100%
C16: 时效指标 | D16: 及时下达至会议承办单位 | E16: 100% | F16: 时效指标 | G16: 及时下达至会议承办单位 | I16: 100%
C17: 成本指标 | D17: 成本控制率 | E17: ≤100% | F17: 成本指标 | G17: 成本控制率 | I17: ≤100%
B18: 效益指标 | C18: 经济效益 | D18: 形成实物投资量 | E18: ≥3亿元 | F18: 经济效益 | G18: 形成实物投资量 | I18: ≥1亿元
C19: 社会效益 | D19: 提高项目开复工率 | E19: 开工率≥50% | F19: 社会效益 | G19: 提高项目开复工率 | I19: 开工率≥50%
D20: 为新区高质量发展提供项目支撑 | E20: 有效提供 | G20: 为新区高质量发展提供项目支撑 | I20: 有效提供
C21: 可持续影响 | D21: 持续扩大有效投资 | E21: 固定资产投资增速13% | F21: 可持续影响 | G21: 持续扩大有效投资 | I21: 固定资产投资增速13%
B22: 满意度 | C22: 服务对象 满意度 | D22: 企业满意度 | E22: ≥90% | F22: 服务对象 满意度 | G22: 企业满意度 | I22: ≥90%

Sheet 多式联运项目利息、承诺费（3046万元）
A1: 2023年兰州新区项目支出绩效目标申报表
A2: （2023年度）
A3: 项目名称 | D3: 多式联运项目利息、承诺费
A4: 主管部门及代码 | D4: 兰州新区经发局（统计局） | F4: 实施单位 | H4: 兰州新区利用外资项目管理办公室
A5: 项目属性 | D5: 延续性项目 | F5: 项目期 | H5: 6
A6: 项目资金 （万元） | D6: 中期资金总额： | E6: 15491.77 | F6: 年度资金总额： | H6: 3046
D7: 其中：财政拨款 | E7: 15491.77 | F7: 其中：财政拨款 | H7: 3046
D8: 其他资金 | F8: 其他资金
A9: 总体目标 | B9: 中期目标（2023年—2025年） | F9: 年度目标
B10: 目标1：按照概算、各项目合同实施情况，合理预测提款进度，测算年度息费，及时足额筹措资金。 目标2：按照财政厅下发息费清单，及时足额完成贷款利息、承诺费支付工作。 | F10: 目标1：按照财政厅批复的年度债务限额与各项目年度工程计划，合理预测提款进度，测算年度息费，申请财政预算。
F11: 目标2：按照财政厅下发息费清单，及时足额完成贷款利息、承诺费支付工作。
A12: 绩效指标 | B12: 一级指标 | C12: 二级指标 | D12: 三级指标 | E12: 指标值 | F12: 二级指标 | G12: 三级指标 | I12: 指标值
B13: 产出指标 | C13: 数量指标 | D13: 利息预算支付率 | E13: 100% | F13: 数量指标 | G13: 利息预算支付率 | I13: 100%
D14: 承诺费预算支付率 | E14: 100% | G14: 承诺费预算支付率 | I14: 100%
C15: 质量指标 | D15: 足额支付利息保障率 | E15: 100% | F15: 质量指标 | G15: 足额支付利息保障率 | I15: 100%
D16: 全额支付承诺费保障率 | E16: 100% | G16: 全额支付承诺费保障利率 | I16: 100%
C17: 时效指标 | D17: 贷款利息支付及时性 | E17: 及时 | F17: 时效指标 | G17: 贷款利息支付及时性 | I17: 及时
D18: 贷款承诺费支付及时性 | E18: 及时 | G18: 贷款承诺费支付及时性 | I18: 及时
C19: 成本指标 | D19: 成本控制率 | E19: ≤100% | F19: 成本指标 | G19: 成本控制率 | I19: ≤100%
B20: 效益指标 | C20: 经济效益 | D20: 降低项目筹资成本 | E20: 降低 | F20: 经济效益 | G20: 降低项目筹资成本 | I20: 降低
C21: 社会效益 | D21: 增强项目低成本多渠道融资 | E21: 80% | F21: 社会效益 | G21: 增强项目低成本多渠道融资 | I21: 80%
D22: 提升项目计划管理的科学性 | E22: 提升 | G22: 提升项目计划管理的科学性 | I22: 提升
B23: 满意度 | C23: 服务对象1 满意度 | D23: 新开发银行满意度 | E23: ≥90% | F23: 服务对象1 满意度 | G23: 新开发银行满意度 | I23: ≥90%
C24: 服务对象2 满意度 | D24: 财政厅满意度 | E24: ≥90% | F24: 服务对象2 满意度 | G24: 财政厅满意度 | I24: ≥90%

Sheet 多式联运项目建设资金（11000万元）
A1: 2023年兰州新区项目支出绩效目标申报表
A2: （2023年度）
A3: 项目名称 | D3: 多式联运项目建设资金
A4: 主管部门及代码 | D4: 兰州新区经发局（统计局） | F4: 实施单位 | H4: 兰州新区利用外资项目管理办公室
A5: 项目属性 | D5: 延续性项目 | F5: 项目期 | H5: 6
A6: 项目资金 （万元） | D6: 中期资金总额： | E6: 36027.35 | F6: 年度资金总额： | H6: 11000
D7: 其中：财政拨款 | E7: 36027.35 | F7: 其中：财政拨款 | H7: 11000
D8: 其他资金 | F8: 其他资金
A9: 总体目标 | B9: 中期目标（2023年—2025年） | F9: 年度目标
B10: 目标1：集疏运通道项目：经七路北延段完成工程结算；纬八路东延段、BW13#路、纬五十一路完成绿化工程、竣工验收、工程结算；科东路和科体路南延段道路工程完成绿化乔木种植、竣工验收、工程结算。 | F10: 目标1：经七路北延段完成工程结算；集疏运通道项目：纬八路东延段、BW13#路、纬五十一路完成竣工验收；科东路和科体路南延段道路工程完成竣工验收。
B11: 目标2：中川北站多式联运提升工程施工：站改部分完成工程竣工验收、工程结算；物流园补强部分完成工程竣工验收、工程结算。高家庄站多式联运改扩建工程施工：站改部分完成工程竣工验收、工程结算；货场部分完成工程竣工验收、工程结算。 | F11: 目标2：中川北站多式联运提升工程施工：站改部分完成工程结算；物流园补强部分完成剩余附属工程、其他收尾及竣工验收工作。高家庄站多式联运改扩建工程施工：站改部分完成工程结算；货场部分完成收尾、竣工验收工作。
B12: 目标3：多式联运物流信息服务平台项目：完成大数据产业园数据中心机房设备安装调试、运行，完成中川北站及高家庄站监控系统、无线AP、监控中心等安装调试、运行，完成高家庄灾备机房设备安装调试、运行；完成综保区无纸化会议室及网络改造工程调试并验收，完成软件系统开发进入运行阶段；区块链进入运行。 | F12: 目标3：多式联运物流信息服务平台项目：完成大数据产业园数据中心机房设备安装调试，完成中川北站及高家庄站监控系统、无线AP、监控中心等安装调试，完成高家庄灾备机房设备安装调试，完成综保区无纸化会议室及网络改造工程调试并验收，完成软件系统开发进入试运行阶段；区块链进入试运行。
B13: 目标4：中期调整项目：经十七路南延连接东绕城完成桥梁工程、路基路面及附属工程，完成竣工验收、工程结算；中川北站货13、14线项目完成路基、堆场区域，房建等附属工程，完成竣工验收、工程结算；中川北站集散配送区项目完成路基、堆场区域、装卸线等附属工程，完成竣工验收、工程结算；综保区保税加工与仓储物流完成基础，厂房及仓库主体及附属工程，完成竣工验收、工程结算。 | F13: 目标4：中期调整项目：经十七路南延连接东绕城完成道路路基工程，雨、污水管网敷设工程完成，道路结构层铺筑工作完成，桥梁桩基工程、箱梁预制、安装，墩柱结构、上部结构施工完成；中川北站货13、14线项目主体完成，附属完成50%；中川北站集散配送区项目主体完成，附属完成30%；综保区保税加工与仓储物流主体完成，附属配套完成60%。
A14: 绩效指标 | B14: 一级指标 | C14: 二级指标 | D14: 三级指标 | E14: 指标值 | F14: 二级指标 | G14: 三级指标 | I14: 指标值
B15: 产出指标 | C15: 数量指标 | D15: 项目年度实施完成率 | E15: 90% | F15: 数量指标 | G15: 项目年度实施完成率 | I15: 90%
C16: 质量指标 | D16: 项目阶段验收合格率 | E16: 100% | F16: 质量指标 | G16: 项目阶段验收合格率 | I16: 100%
C17: 时效指标 | D17: 项目完成及时性 | E17: 及时 | F17: 时效指标 | G17: 项目完成及时性 | I17: 及时
C18: 成本指标 | D18: 成本控制率 | E18: ≤100% | F18: 成本指标 | G18: 成本控制率 | I18: ≤100%
B19: 效益指标 | C19: 经济效益 | D19: 节约物流成本 | E19: 节约 | F19: 经济效益 | G19: 节约物流成本 | I19: 节约
C20: 生态效益 | D20: 提高物流服务水平 | E20: 提高 | F20: 生态效益 | G20: 提高物流服务水平 | I20: 提高
C21: 可持续影响 | D21: 提高运输效率 | E21: 提高 | F21: 可持续影响 | G21: 提高运输效率 | I21: 提高
D22: 提高物流服务水平 | E22: 提升 | G22: 提高物流服务水平 | I22: 提升
D23: 增加就业机会 | E23: 增加 | G23: 增加就业机会 | I23: 增加
B24: 满意度 | C24: 服务对象 满意度 | D24: 周边运输企业满意度 | E24: ≥90% | F24: 服务对象 满意度 | G24: 周边运输企业满意度 | I24: ≥90%

Sheet 移民办工作经费（19万元）
A1: 2023年兰州新区项目支出绩效目标申报表
A2: （ 2023 年度）
A3: 项目名称 | D3: 移民办工作经费
A4: 主管部门及代码 | D4: 兰州新区经济发展局（统计局） | F4: 实施单位 | H4: 兰州新区移民搬迁安置 办公室
A5: 项目属性 | D5: 延续性项目 | F5: 项目期 | H5: 1
A6: 项目资金 （万元） | D6: 中期资金总额： | E6: =H6*3 -> 57 | F6: 年度资金总额： | H6: 19
D7: 其中：财政拨款 | E7: =H7*3 -> 57 | F7: 其中：财政拨款 | H7: 19
D8: 其他资金 | F8: 其他资金
A9: 总体目标 | B9: 中期目标（2023年—2025年） | F9: 年度目标
B10: 目标1：保证移民办顺利开展各项工作； | F10: 目标1：为移民办管理提供必要的后勤保障；
B11: 目标2：合理采购办公用品，规范经费支出行为。 | F11: 目标2：确保各项经费合理支出，资金使用高效规范。
A12: 绩效指标 | B12: 一级指标 | C12: 二级指标 | D12: 三级指标 | E12: 指标值 | F12: 二级指标 | G12: 三级指标 | H12: 指标值
B13: 产出指标 | C13: 数量指标 | D13: 指标1：移民搬迁日常工作完成率 | E13: 100% | F13: 数量指标 | G13: 指标1：移民搬迁日常工作完成率 | H13: 100%
D14: 指标2：项目规划管理工作完成率 | E14: ≥90% | G14: 指标2：项目规划管理工作完成率 | H14: ≥90%
D15: 指标3：政策法规宣传工作完成率 | E15: ≥90% | G15: 指标3：政策法规宣传工作完成率 | H15: ≥90%
C16: 质量指标 | D16: 指标1：移民搬迁日常工作保障情况 | E16: 保障 | F16: 质量指标 | G16: 指标1：移民搬迁日常工作保障情况 | H16: 保障
D17: 指标2：项目规划管理工作合格率 | E17: 100% | G17: 指标2：项目规划管理工作合格率 | H17: 100%
D18: 指标3：政策法规宣传工作合格率 | E18: 100% | G18: 指标3：政策法规宣传工作合格率 | H18: 100%
C19: 时效指标 | D19: 指标1：移民搬迁日常工作完成及时性 | E19: 及时 | F19: 时效指标 | G19: 指标1：移民搬迁日常工作完成及时性 | H19: 及时
D20: 指标2：项目规划管理工作完成及时性 | E20: 及时 | G20: 指标2：项目规划管理工作完成及时性 | H20: 及时
D21: 指标3：政策法规宣传工作完成及时性 | E21: 及时 | G21: 指标3：政策法规宣传工作完成及时性 | H21: 及时
C22: 成本指标 | D22: 指标1：成本控制率 | E22: ≤100% | F22: 成本指标 | G22: 指标1：成本控制率 | H22: ≤100%
B23: 效益指标 | C23: 社会效益 | D23: 指标1：移民搬迁安置管理水平提高 | E23: 提高 | F23: 社会效益 | G23: 指标1：移民搬迁安置管理水平提高 | H23: 提高
D24: 指标2：后勤保障水平提高 | E24: 提高 | G24: 指标2：后勤保障水平提高 | H24: 提高
C25: 可持续影响 | D25: 指标1：政策宣传影响力 | E25: ≥90% | F25: 可持续影响 | G25: 指标1：政策宣传影响力 | H25: ≥90%
B26: 满意度 指标 | C26: 服务对象 满意度 | D26: 指标1：工作人员满意度 | E26: ≥90% | F26: 服务对象 满意度 | G26: 指标1：工作人员满意度 | H26: ≥90%

Sheet 政府定价成本监审（122.8万元）
A1: 2023年兰州新区项目支出绩效目标申报表
A2: （2022年度）
A3: 项目名称 | D3: 政府定价成本监审
A4: 主管部门及代码 | D4: 兰州新区经济发展局（统计局) | F4: 实施单位
A5: 项目属性 | D5: 新增项目 | F5: 项目期 | H5: 1年
A6: 项目资金 （万元） | D6: 中期资金总额： | E6: 95 | F6: 年度资金总额： | H6: 122.8
D7: 其中：财政拨款 | E7: 95 | F7: 其中：财政拨款 | H7: 122.8
D8: 其他资金 | F8: 其他资金
A9: 总体 目标 | B9: 中期目标（2023年—2024年） | F9: 年度目标
B10: 目标1：根据成本监审结论完成1个保障性住房项目销售价格核定及一房一价备案工作 | F10: 目标1：根据成本监审结论疏导供暖价格，建立合理供暖价格体系
A11: 绩效 指标 | B11: 一级指标 | C11: 二级指标 | D11: 三级指标 | E11: 指标值 | F11: 二级指标 | G11: 三级指标 | I11: 指标值
B12: 产出指标 | C12: 数量指标 | D12: 成本监审工作完成情况 | E12: 100% | F12: 数量指标 | G12: 成本监审工作完成情况 | I12: 100%
D13: 政策法规宣传工作完成率 | E13: ≥90% | G13: 政策法规宣传工作完成率 | I13: ≥90%
C14: 质量指标 | D14: 出具成本监审报告合格率 | E14: 100% | F14: 质量指标 | G14: 出具成本监审报告合格率 | I14: 100%
D15: 成本监审工作保障率 | E15: 保障 | G15: 成本监审工作保障率 | I15: 保障
C16: 时效指标 | D16: 成本监审工作及时性 | E16: 及时 | F16: 时效指标 | G16: 成本监审工作及时性 | I16: 及时
D17: 出具成本监审报告书及时性 | E17: 及时 | G17: 出具成本监审报告书及时性 | I17: 及时
C18: 成本指标 | D18: 成本控制率 | E18: ≤100% | F18: 成本指标 | G18: 成本控制率 | I18: ≤100%
B19: 效果目标 | C19: 社会效益 | D19: 降低居民生活成本 | E19: 降低 | F19: 社会效益 | G19: 降低居民生活成本 | I19: 降低
D20: 保持民生价格合理 | E20: 保持 | G20: 保持民生价格合理 | I20: 保持
D21: 保障特殊群体的权益 | E21: 保障 | G21: 保障特殊群体的权益 | I21: 保障
C22: 可持续影响 | D22: 健全成本监审体系 | E22: ≥90% | F22: 可持续影响 | G22: 健全成本监审体系 | I22: ≥90%
B23: 满意度 | C23: 服务对象 满意度 | D23: 工作人员满意度 | E23: ≥95% | F23: 服务对象 满意度 | G23: 工作人员满意度 | I23: ≥95%
D24: 人民群众满意度 | E24: ≥95% | G24: 人民群众满意度 | I24: ≥95%

Sheet 政府投资项目可行性研究报告评估咨询服务费（290）
A1: 2023年兰州新区项目支出绩效目标申报表（参考模板）
A2: （ 2023年度）
A3: 项目名称 | D3: 政府投资项目可行性研究报告评估咨询服务费
A4: 主管部门及代码 | F4: 实施单位 | H4: 兰州新区经济发展局（统计局）
A5: 项目属性 | D5: 延续项目 | F5: 项目期 | H5: 长期
A6: 项目资金 （万元） | D6: 中期资金总额： | E6: 900 | F6: 年度资金总额： | H6: 290
D7: 其中：财政拨款： | E7: 900 | F7: 其中：财政拨款： | H7: 290
D8: 其他资金： | F8: 其他资金：
A9: 总体目标 | B9: 中期目标（2023年—2025年） | F9: 年度目标
B10: 目标1：完成项目可行性研究报告评估咨询150个。 | F10: 目标1：完成项目可行性研究报告评估咨询50个。
B11: 目标2：快速完成政府投资项目审批。 | F11: 目标2：快速完成政府投资项目审批。
A12: 绩效指标 | B12: 一级指标 | C12: 二级指标 | D12: 三级指标 | E12: 指标值 | F12: 二级指标 | G12: 三级指标 | I12: 指标值
B13: 产出指标 | C13: 数量指标 | D13: 指标1：完成项目可行性研究报告评估咨询 | E13: 150 | F13: 数量指标 | G13: 指标1：完成项目可行性研究报告评估咨询 | I13: 50
C14: 质量指标 | D14: 指标1：评审报告合格率 | E14: 100% | F14: 质量指标 | G14: 指标1：评审报告合格率 | I14: 100%
C15: 时效指标 | D15: 指标1：出具评估报告及时性 | E15: 及时 | F15: 时效指标 | G15: 指标1：出具评估报告及时性 | I15: 及时
C16: 成本指标 | D16: 指标1：成本控制率 | E16: ≤100% | F16: 成本指标 | G16: 指标1：成本控制率 | I16: ≤100%
B17: 效益指标 | C17: 经济效益 | D17: 指标1：控制项目投资合理 | E17: 控制 | F17: 经济效益 | G17: 指标1：控制项目投资合理 | I17: 控制
C18: 社会效益 | D18: 指标1：保障项目落地建设 | E18: 保障 | F18: 社会效益 | G18: 指标1：保障项目落地建设 | I18: 保障
D19: 指标2：提升基础设施配套水平 | E19: 提升 | G19: 指标2：提升基础设施配套水平 | I19: 提升
C20: 可持续影响 | D20: 指标1：完善城市基础设施建设 | E20: 提升 | F20: 可持续影响 | G20: 指标1：完善城市基础设施建设 | I20: 提升
B21: 满意度 | C21: 服务对象 满意度 | D21: 指标1：人民群众满意度 | E21: ≥90% | F21: 服务对象 满意度 | G21: 指标1：人民群众满意度 | I21: ≥90%
D22: 指标2：企业满意度 | E22: ≥90% | G22: 指标2：企业满意度 | I22: ≥90%

Sheet 固定资产投资项目节能报告评审费用（40）
A1: 2023年兰州新区项目支出绩效目标申报表（参考模板）
A2: （ 2023年度）
A3: 项目名称 | D3: 固定资产投资项目节能报告评审费用
A4: 主管部门及代码 | F4: 实施单位 | H4: 兰州新区经济发展局（统计局）
A5: 项目属性 | D5: 延续项目 | F5: 项目期 | H5: 长期
A6: 项目资金 （万元） | D6: 中期资金总额： | E6: 180 | F6: 年度资金总额： | H6: 40
D7: 其中：财政拨款 | E7: 180 | F7: 其中：财政拨款 | H7: 40
D8: 其他资金 | F8: 其他资金
A9: 总体目标 | B9: 中期目标（2023年—2025年） | F9: 年度目标
B10: 目标1：完成固定资产投资项目节能报告评审90个。 | F10: 目标1：完成固定资产投资项目节能报告评审30个。
B11: 目标2：新区投产企业能耗符合行业标准。 | F11: 目标2：新区投产企业能耗符合行业标准。
A12: 绩效指标 | B12: 一级指标 | C12: 二级指标 | D12: 三级指标 | E12: 指标值 | F12: 二级指标 | G12: 三级指标 | I12: 指标值
B13: 产出指标 | C13: 数量指标 | D13: 指标1：完成申报固定资产投资项目节能审查 | E13: 90 | F13: 数量指标 | G13: 指标1：完成申报固定资产投资项目节能审查 | I13: 30
C14: 质量指标 | D14: 指标1：出具审查意见合格率 | E14: 100% | F14: 质量指标 | G14: 指标1：按期完成项目节能审查，出具审查意见 | I14: 100%
D15: 指标2：新区投产企业能耗符合行业标准 | E15: 符合 | G15: 指标2：新区投产企业能耗符合行业标准 | I15: 符合
C16: 时效指标 | D16: 指标1：出具报告及时性 | E16: 及时 | F16: 时效指标 | G16: 指标1：出具报告及时性 | I16: 及时
C17: 成本指标 | D17: 指标1：成本控制率 | E17: ≤100% | F17: 成本指标 | G17: 指标1：成本控制率 | I17: ≤100%
B18: 效益指标 | C18: 经济效益 | D18: 指标1：保障项目落地建设 | E18: 保障 | F18: 经济效益 | G18: 指标1：保障项目落地建设 | I18: 保障
C19: 社会效益 | D19: 指标1：控制单位产品能耗达到国内先进水平 | E19: 控制 | F19: 社会效益 | G19: 指标1：控制单位产品能耗达到国内先进水平 | I19: 控制
C20: 可持续影响 | D20: 指标1：持续降低企业单位产品能耗水平 | E20: 降低 | F20: 可持续影响 | G20: 指标1：持续降低企业单位产品能耗水平 | I20: 降低
D21: 指标2：推进资源节约型、环境友好型社会建设 | E21: 推进 | G21: 指标2：推进资源节约型、环境友好型社会建设 | I21: 推进
D22: 指标3：优化产业结构 | E22: 优化 | G22: 指标3：优化产业结构 | I22: 优化
B23: 满意度 | C23: 服务对象满意度 | D23: 指标1：人民群众满意度 | E23: ≥90% | F23: 服务对象 满意度 | G23: 指标1：人民群众满意度 | I23: ≥90%
D24: 指标2：企业满意度 | E24: ≥90% | G24: 指标2：企业满意度 | I24: ≥90%

Sheet 政务中心日常运转费（40）
A1: 2023年兰州新区项目支出绩效目标申报表
A2: （ 2023 年度）
A3: 项目名称 | D3: 政务中心日常运转费
A4: 主管部门及代码 | D4: 兰州新区经济发展局（统计局） | F4: 实施单位 | H4: 政务服务中心
A5: 项目属性 | D5: 延续项目 | F5: 项目期 | H5: 长期
A6: 项目资金 （万元） | D6: 中期资金总额： | E6: =H6*3 -> 120 | F6: 年度资金总额： | H6: 40
D7: 其中：财政拨款 | E7: =H7*3 -> 120 | F7: 其中：财政拨款 | H7: 40
D8: 其他资金 | F8: 其他资金
A9: 总体目标 | B9: 中期目标（2023年—2026年） | F9: 年度目标
B10: 目标1：保障政务大厅正常运转，提高办事效率。 | F10: 目标1：保障政务大厅正常运转，提高办事效率。
B11: 目标2：打造优质的营商环境。 | F11: 目标2：打造优质的营商环境。
B12: 目标3：提高企业和办事群众的满意度。 | F12: 目标3：提高企业和办事群众的满意度。
A13: 绩效指标 | B13: 一级指标 | C13: 二级指标 | D13: 三级指标 | E13: 指标值 | F13: 二级指标 | G13: 三级指标 | I13: 指标值
B14: 产出指标 | C14: 数量指标 | D14: 采购办公用品及耗材数量 | E14: 2批 | F14: 数量指标 | G14: 采购办公用品及耗材数量 | I14: 2批
D15: 维修办公设备数量 | E15: 3台复印机,1台传真机，30台电脑，30台打印机 | G15: 维修办公设备数量 | I15: 3台复印机,1台传真机，30台电脑，30台打印机
D16: 印刷品数量 | E16: 40本荣誉证书、50个工作证、20个标识标牌、其他资料汇编50本 | G16: 印刷品数量 | I16: 40本荣誉证书、50个工作证、20个标识标牌、其他资料汇编50本
D17: EMS邮寄件数量 | E17: 1500件 | G17: EMS邮寄件数量 | I17: 1500件
D18: 租赁车辆数量 | E18: 1辆 | G18: 租赁车辆数量 | I18: 1辆
D19: 消杀老鼠数量 | E19: 50只 | G19: 消杀老鼠数量 | I19: 50只
C20: 质量指标 | D20: 办公用品及耗材质量合格率 | E20: 100% | F20: 质量指标 | G20: 办公用品及耗材质量合格率 | I20: 100%
D21: 维修办公设备专业性 | E21: 100% | G21: 维修办公设备专业性 | I21: 100%
D22: 印刷品质量合格率 | E22: 100% | G22: 印刷品质量合格率 | I22: 100%
D23: 邮寄包裹质量合格率 | E23: 100% | G23: 邮寄包裹质量合格率 | H23: 邮寄包裹质量合格率 | I23: 100%
D24: 租赁车辆实用性 | E24: 100% | G24: 租赁车辆实用性 | H24: 租赁车辆实用性 | I24: 100%
D25: 消杀老鼠专业性 | E25: 100% | G25: 消杀老鼠专业性 | H25: 消杀老鼠专业性 | I25: 100%
C26: 时效指标 | D26: 办公用品采购及时性 | E26: 及时 | F26: 时效指标 | G26: 办公用品采购及时性 | I26: 及时
D27: 维修设备及时性 | E27: 及时 | G27: 维修设备及时性 | I27: 及时
D28: 印刷及时性 | E28: 及时 | G28: 印刷及时性 | I28: 及时
D29: 邮寄及时性 | E29: 及时 | G29: 邮寄及时性 | I29: 及时
D30: 租赁车辆及时性 | E30: 及时 | G30: 租赁车辆及时性 | I30: 及时
D31: 消杀老鼠及时性 | E31: 及时 | G31: 消杀老鼠及时性 | I31: 及时
C32: 成本指标 | D32: 成本控制率 | E32: ≤100% | F32: 成本指标 | G32: 成本控制率 | I32: ≤100%
B33: 效益指标 | C33: 社会效益 | D33: 保障大厅正常运转 | E33: 保障 | F33: 社会效益 | G33: 保障大厅正常运转 | I33: 保障
D34: 提高窗口办事效率 | E34: 提高 | G34: 提高窗口办事效率 | I34: 提高
D35: 提升工作人员服务能力 | E35: 提升 | G35: 提升工作人员服务能力 | I35: 提升
C36: 可持续影响 | D36: 优化兰州新区营商环境 | E36: 优化 | F36: 可持续影响 | G36: 优化兰州新区营商环境 | I36: 优化
B37: 满意度指标 | C37: 服务对象 满意度 | D37: 办事企业满意度 | E37: ≥90% | F37: 服务对象 满意度 | G37: 办事企业满意度 | I37: ≥90%
D38: 办事群众满意度 | E38: ≥90% | G38: 办事群众满意度 | I38: ≥90%

Sheet 《十四五规划纲要》中期评估等费用（90）
A1: 2023年兰州新区项目支出绩效目标申报表
A2: （2023年度）
A3: 项目名称 | D3: 《十四五规划纲要》中期评估等费用
A4: 主管部门及代码 | D4: 兰州新区经济发展局（统计局） | F4: 实施单位
A5: 项目属性 | D5: 延续性项目 | F5: 项目期 | H5: 1年
A6: 项目资金 （万元） | D6: 中期资金总额： | E6: 180 | F6: 年度资金总额： | H6: 90
D7: 其中：财政拨款 | E7: 180 | F7: 其中：财政拨款 | H7: 90
D8: 其他资金 | F8: 其他资金
A9: 总体 目标 | B9: 中期目标（2023年—2024年） | F9: 年度目标
B10: 目标1：完成《十四五规划纲要》中期评估 | F10: 目标1：完成《十四五规划纲要》中期评估
A11: 绩效 指标 | B11: 一级指标 | C11: 二级指标 | D11: 三级指标 | E11: 指标值 | F11: 二级指标 | G11: 三级指标 | H11: 指标值
B12: 产出指标 | C12: 数量指标 | D12: 印制《十四五规划纲要》中期评估报告 | E12: 50 | F12: 数量指标 | G12: 印制《十四五规划纲要》中期评估报告 | H12: 50
C13: 质量指标 | D13: 《十四五规划纲要》中期评估保障率 | E13: ≥90% | F13: 质量指标 | G13: 《十四五规划纲要》中期评估保障率 | H13: ≥90%
C14: 时效指标 | D14: 《十四五规划纲要》中期评估及时性 | E14: 及时 | F14: 时效指标 | G14: 《十四五规划纲要》中期评估及时性 | H14: 及时
C15: 成本指标 | D15: 成本控制率 | E15: ≤100% | F15: 成本指标 | G15: 成本控制率 | H15: ≤100%
B16: 效益指标 | C16: 社会效益指标 | D16: 提高规划质量，强化政策协同 | E16: 有效提高 | F16: 社会效益指标 | G16: 提高规划质量，强化政策协同 | H16: 有效提高
C17: 经济效益指标 | D17: 促进兰州发展投资 | E17: 有效促进 | F17: 经济效益指标 | G17: 促进兰州发展投资 | H17: 有效促进
C18: 可持续影响 | D18: 持续发挥《十四五规划纲要》对兰州经济的指导作用 | E18: 持续作用 | F18: 可持续影响 | G18: 持续发挥《十四五规划纲要》对兰州经济的指导作用 | H18: 持续作用
B19: 满意度指标 | C19: 服务对象 满意度 | D19: 提升服务对象满意度 | E19: ≥90% | F19: 服务对象 满意度 | G19: 提升服务对象满意度 | H19: ≥90%
D20: 提升工作人员满意度 | E20: ≥90% | G20: 提升工作人员满意度 | H20: ≥90%

Sheet 兰州新区救灾物资储备库运营管理服务（72.45）
A1: 2023年兰州新区项目支出绩效目标申报表（参考模板）
A2: （2023 年度）
A3: 项目名称 | D3: 兰州新区救灾物资储备库运营管理服务
A4: 主管部门及代码 | F4: 实施单位 | H4: 兰州新区经济发展局（统计局）
A5: 项目属性 | D5: 延续项目 | F5: 项目期 | H5: 长期
A6: 项目资金 （万元） | D6: 中期资金总额： | E6: 216 | F6: 年度资金总额： | H6: 72.45
D7: 其中：财政拨款 | E7: 216 | F7: 其中：财政拨款 | H7: 72.45
D8: 其他资金 | E8: / | F8: 其他资金 | H8: /
A9: 总体目标 | B9: 中期目标（2023年—2025年） | F9: 年度目标
B10: 目标1：保障兰州新区救灾物资储备库规范管理，正常运转 | F10: 目标1：保障兰州新区救灾物资储备库规范管理，正常运转
B11: 目标2：保障兰州新区救灾物资储备库水、电供应正常 | F11: 目标2：保障兰州新区救灾物资储备库水、电供应正常
B12: 目标3：保障兰州新区救灾物资储备库物资调拨经费充足 | F12: 目标3：保障兰州新区救灾物资储备库物资调拨经费充足
A13: 绩效指标 | B13: 一级指标 | C13: 二级指标 | D13: 三级指标 | E13: 指标值 | F13: 二级指标 | G13: 三级指标 | I13: 指标值
B14: 产出指标 | C14: 数量指标 | D14: 运营工作完成率 | E14: 100% | F14: 数量指标 | G14: 运营工作完成率 | I14: 100%
C15: 质量指标 | D15: 运营工作质量情况 | E15: 达标 | F15: 质量指标 | G15: 运营工作质量情况 | I15: 达标
C16: 时效指标 | D16: 运营工作开展及时性 | E16: 及时 | F16: 时效指标 | G16: 运营工作开展及时性 | I16: 及时
C17: 成本指标 | D17: 成本控制率 | E17: ≤100% | F17: 成本指标 | G17: 成本控制率 | I17: ≤100%
B18: 效益指标 | C18: 可持续影响 | D18: 保障救灾物资及时调拨 | E18: 及时 | F18: 可持续影响 | G18: 保障救灾物资及时调拨 | I18: 及时
D19: 保障救灾物资储备库供水、供电正常，调拨正常 | E19: 正常 | G19: 保障救灾物资储备库供水、供电正常，调拨正常 | I19: 正常
B20: 满意度 | C20: 服务对象 满意度 | D20: 管护人员满意度 | E20: ≥90% | F20: 服务对象 满意度 | G20: 管护人员满意度 | I20: ≥90%

Sheet 兰州新区2022年储备粮补贴资金（313.64）
A1: 2023年兰州新区项目支出绩效目标申报表（参考模板）
A2: （2023 年度）
A3: 项目名称 | D3: 兰州新区2022年储备粮补贴资金
A4: 主管部门及代码 | F4: 实施单位 | H4: 兰州新区经济发展局（统计局）
A5: 项目属性 | D5: 延续项目 | F5: 项目期 | H5: 长期
A6: 项目资金 （万元） | D6: 中期资金总额： | E6: 894.3726 | F6: 年度资金总额： | H6: 313.64
D7: 其中：财政拨款 | E7: 894.3726 | F7: 其中：财政拨款 | H7: 313.64
D8: 其他资金 | E8: / | F8: 其他资金 | H8: /
A9: 总体目标 | B9: 中期目标（2023年—2025年） | F9: 年度目标
B10: 目标1：确保新区储备粮数量真实、质量良好、储存安全 | F10: 目标1：确保新区储备粮数量真实、质量良好、储存安全
B11: 目标2：确保新区储备粮补贴资金及时拨付到位 | F11: 目标2：确保新区储备粮补贴资金及时拨付到位
A12: 绩效指标 | B12: 一级指标 | C12: 二级指标 | D12: 三级指标 | E12: 指标值 | F12: 二级指标 | G12: 三级指标 | I12: 指标值
B13: 产出指标 | C13: 数量指标 | D13: 储备原粮数量 | E13: 9000吨 | F13: 数量指标 | G13: 储备原粮数量 | I13: 9000吨
D14: 储备成品粮数量 | E14: 2275吨 | G14: 储备成品粮数量 | I14: 2275吨
C15: 质量指标 | D15: 储备原粮质量情况 | E15: 达标 （国标一等） | F15: 质量指标 | G15: 储备原粮质量情况 | I15: 达标（国标一等）
E16: 达标 （国标一级） | G16: 储备成品粮质量情况 | I16: 达标（国标一级）
C17: 时效指标 | D17: 粮食储备工作开展及时性 | E17: 及时 | F17: 时效指标 | G17: 粮食储备工作开展及时性 | I17: 及时
C18: 成本指标 | D18: 成本控制率 | E18: ≤100% | F18: 成本指标 | G18: 成本控制率 | I18: ≤100%
B19: 效益指标 | C19: 社会效益 | D19: 稳定市场供给 | E19: 确保市场断货、哄抢等事件全年不超过3次。 | F19: 社会效益 | G19: 稳定市场供给 | I19: 确保市场断货、哄抢等事件全年不超过3次。
C20: 可持续影响 | D20: 提升粮食应急能力 | E20: 提升 | F20: 可持续影响 | G20: 提升粮食应急能力 | I20: 及时
B21: 满意度 | C21: 服务对象 满意度 | D21: 工作人员满意度 | E21: ≥90% | F21: 服务对象 满意度 | G21: 工作人员满意度 | I21: ≥90%

Sheet 兰州新区储备粮质检费用（10）
A1: 2023年兰州新区项目支出绩效目标申报表（参考模板）
A2: （2023 年度）
A3: 项目名称 | D3: 兰州新区储备粮质检费用
A4: 主管部门及代码 | F4: 实施单位 | H4: 兰州新区经济发展局（统计局）
A5: 项目属性 | D5: 延续项目 | F5: 项目期 | H5: 长期
A6: 项目资金 （万元） | D6: 中期资金总额： | E6: 30.00 | F6: 年度资金总额： | H6: 10
D7: 其中：财政拨款 | E7: 30.00 | F7: 其中：财政拨款 | H7: 10
D8: 其他资金 | E8: / | F8: 其他资金 | H8: /
A9: 总体目标 | B9: 中期目标（2023年—2025年） | F9: 年度目标
B10: 目标1：保障兰州新区储备粮及时开展质检工作，保证储备粮质量安全 | F10: 目标1：保障兰州新区储备粮及时开展质检工作，保证储备粮质量安全
B11: 目标2：保障兰州新区储备粮质检经费充足 | F11: 目标2：保障兰州新区储备粮质检经费充足
A12: 绩效指标 | B12: 一级指标 | C12: 二级指标 | D12: 三级指标 | E12: 指标值 | F12: 二级指标 | G12: 三级指标 | I12: 指标值
B13: 产出指标 | C13: 数量指标 | D13: 质检工作完成率（一年两次） | E13: 100% | F13: 数量指标 | G13: 质检工作完成率（一年两次） | I13: 100%
C14: 质量指标 | D14: 严格按质检标准执行 | E14: 达标 | F14: 质量指标 | G14: 严格按质检标准执行 | I14: 达标
C15: 时效指标 | D15: 质检工作开展及时性 | E15: 及时 | F15: 时效指标 | G15: 质检工作开展及时性 | I15: 及时
C16: 成本指标 | D16: 成本控制率 | E16: ≤100% | F16: 成本指标 | G16: 成本控制率 | I16: ≤100%
B17: 效益指标 | C17: 可持续影响 | D17: 保障储备粮质检及时 | E17: 及时 | F17: 可持续影响 | G17: 保障储备粮质检及时 | I17: 及时
D18: 保障储备粮质量、存储安全 | E18: 正常 | G18: 保障储备粮质量、存储安全 | I18: 正常
B19: 满意度 | C19: 服务对象 满意度 | D19: 工作人员满意度 | E19: ≥90% | F19: 服务对象 满意度 | G19: 工作人员满意度 | I19: ≥90%

Sheet 档案整理费用（15）
A1: 2023年兰州新区项目支出绩效目标申报表（参考模板）
A2: （2023 年度）
A3: 项目名称 | D3: 档案整理费用
A4: 主管部门及代码 | F4: 实施单位 | H4: 兰州新区经济发展局（统计局）
A5: 项目属性 | D5: 延续项目 | F5: 项目期 | H5: 长期
A6: 项目资金 （万元） | D6: 中期资金总额： | E6: 30 | F6: 年度资金总额： | H6: 15
D7: 其中：财政拨款 | E7: 30 | F7: 其中：财政拨款 | H7: 15
D8: 其他资金 | E8: / | F8: 其他资金 | H8: /
A9: 总体 目标 | B9: 中期目标（2023年—2025年） | F9: 年度目标
B10: 完成上一年度文书档案整理及档案数字化处理并达到入馆条件。 | F10: 完成上一年度文书档案整理及档案数字化处理并达到入馆条件。
A11: 绩效指标 | B11: 一级指标 | C11: 二级指标 | D11: 三级指标 | E11: 指标值 | F11: 二级指标 | G11: 三级指标 | I11: 指标值
B12: 产出指标 | C12: 数量指标 | D12: 完成2017-2018年档案整理 | E12: 全部完成 | F12: 数量指标 | G12: 完成2017-2018年档案整理 | I12: 全部完成
C13: 质量指标 | D13: 满足新区档案馆入馆要求 | E13: 满足要求 | F13: 质量指标 | G13: 满足新区档案馆入馆要求 | I13: 满足要求
C14: 时效指标 | D14: 及时完成档案整理工作 | E14: 及时完成 | F14: 时效指标 | G14: 及时完成档案整理工作 | I14: 及时完成
C15: 成本指标 | D15: 成本控制率 | E15: ≤100% | F15: 成本指标 | G15: 成本控制率 | I15: ≤100%
B16: 效益指标 | C16: 社会效益 | D16: 提高档案查询便捷度 | E16: 方便查阅 | F16: 社会效益 | G16: 提高档案查询便捷度 | I16: 方便查阅
D17: 加快档案数字化进程 | E17: 加快 | G17: 加快档案数字化进程 | I17: 加快
C18: 可持续影响 | D18: 提高档案管理水平 | E18: 提高 | F18: 可持续影响 | G18: 提高档案管理水平 | I18: 提高
C19: 服务对象1 满意度指标 | D19: 提升服务对象满意度 | E19: ≥90% | F19: 服务对象1 满意度指标 | G19: 提升服务对象满意度 | I19: ≥90%
C20: 服务对象2 满意度指标 | D20: 提升工作人员满意度 | E20: ≥90% | F20: 服务对象2 满意度指标 | G20: 提升工作人员满意度 | I20: ≥90%
B21: 满意度 | C21: 服务对象 满意度 | D21: 工作人员满意度 | E21: ≥90% | F21: 服务对象 满意度 | G21: 工作人员满意度 | I21: ≥90%

Sheet 预算绩效管理（40）
A1: 2023年兰州新区项目支出绩效目标申报表（参考模板）
A2: （2023 年度）
A3: 项目名称 | D3: 预算绩效管理
A4: 主管部门及代码 | F4: 实施单位 | H4: 兰州新区经济发展局（统计局）
A5: 项目属性 | D5: 延续项目 | F5: 项目期 | H5: 长期
A6: 项目资金 （万元） | D6: 中期资金总额： | E6: 30 | F6: 年度资金总额： | H6: 35
D7: 其中：财政拨款 | E7: 30 | F7: 其中：财政拨款 | H7: 35
D8: 其他资金 | E8: / | F8: 其他资金 | H8: /
A9: 总体 目标 | B9: 中期目标（2023年—2025年） | F9: 年度目标
B10: 完成上一年度文书档案整理及档案数字化处理并达到入馆条件。 | F10: 完成上一年度文书档案整理及档案数字化处理并达到入馆条件。
A11: 绩效指标 | B11: 一级指标 | C11: 二级指标 | D11: 三级指标 | E11: 指标值 | F11: 二级指标 | G11: 三级指标 | I11: 指标值
B12: 产出指标 | C12: 数量指标 | D12: 完成2023-2025年预算绩效评价 | E12: 全部完成 | F12: 数量指标 | G12: 完成2020-2022年预算绩效评价 | I12: 全部完成
C13: 质量指标 | D13: 预算绩效评价符合工作要求 | E13: 符合要求 | F13: 质量指标 | G13: 预算绩效评价符合工作要求 | H13: 预算绩效评价符合工作要求 | I13: 符合要求
C14: 时效指标 | D14: 及时完成预算绩效评价 | E14: 及时完成 | F14: 时效指标 | G14: 及时完成预算绩效评价 | H14: 及时完成预算绩效评价 | I14: 及时完成
C15: 成本指标 | D15: 成本控制率 | E15: ≤100% | F15: 成本指标 | G15: 成本控制率 | H15: 成本控制率 | I15: ≤100%
B16: 效益指标 | C16: 社会效益 | D16: 提高预算资金使用效率 | E16: 提高 | F16: 社会效益 | G16: 提高预算资金使用效率 | I16: 提高
D17: 降低项目管理成本 | E17: 降低 | G17: 降低项目管理成本 | I17: 降低
C18: 可持续影响 | D18: 推动新区经济社会高质量发展 | E18: 推动 | F18: 可持续影响 | G18: 推动新区经济社会高质量发展 | H18: 提高档案管理水平 | I18: 推动
B19: 满意度 | C19: 服务对象 满意度 | D19: 工作人员满意度 | E19: ≥90% | F19: 服务对象 满意度 | G19: 工作人员满意度 | I19: ≥90%

Sheet 两项收入调查经费（30万）
A1: 2023年兰州新区项目支出绩效目标申报表（参考模板）
A2: （2023年度）
A3: 项目名称 | D3: 两项收入调查经费
A4: 主管部门及代码 | D4: 兰州新区经济发展局（统计局） | F4: 实施单位 | H4: 兰州新区经济发展局（统计局）
A5: 项目属性 | D5: 延续项目 | F5: 项目期 | H5: 长期
A6: 项目资金 （万元） | D6: 中期资金总额： | E6: 90 | F6: 年度资金总额： | H6: 30
D7: 其中：财政拨款 | E7: 90 | F7: 其中：财政拨款 | H7: 30
D8: 其他资金 | F8: 其他资金
A9: 总体目标 | B9: 中期目标（2023年—2025年） | F9: 年度目标
B10: 目标1：2023年每日由国家抽中调查户进行记账联网直报，辅调员定期入户开展生活状况调查，新区审核记账数据及问卷调查数据并汇总上报，国家、省、市按季度逐级评估反馈并公布新区上半年城乡居民可支配收入数据 | F10: 目标1：2023年每日由国家抽中调查户进行记账联网直报，辅调员定期入户开展生活状况调查，新区审核记账数据及问卷调查数据并汇总上报，国家、省、市按季度逐级评估反馈并公布新区2023年城乡居民可支配收入数据
A11: 绩效指标 | B11: 一级指标 | C11: 二级指标 | D11: 三级指标 | E11: 指标值 | F11: 二级指标 | G11: 三级指标 | I11: 指标值
B12: 产出指标 | C12: 数量指标 | D12: 调查户补助发放户数 | E12: 100户/月 | F12: 数量指标 | G12: 调查户补助发放户数 | I12: 100户/月
D13: 辅调员补助发放人数 | E13: 10人/月 | G13: 辅调员补助发放人数 | I13: 10人/月
C14: 质量指标 | D14: 调查户记账合格率 | E14: =100% -> 100% | F14: 质量指标 | G14: 调查户记账合格率 | I14: =100% -> 100%
D15: 辅调员工作合格率 | E15: =100% -> 100% | G15: 辅调员工作合格率 | I15: =100% -> 100%
C16: 时效指标 | D16: 调查户补助发放及时性 | E16: 及时 | F16: 时效指标 | G16: 调查户补助发放及时性 | I16: 及时
D17: 辅调员补助发放及时性 | E17: 及时 | G17: 辅调员补助发放及时性 | I17: 及时
C18: 成本指标 | D18: 成本控制率 | E18: ≤100% | F18: 成本指标 | G18: 成本控制率 | I18: ≤100%
B19: 效益指标 | C19: 社会效益 | D19: 居民收入分配格局监测保障性 | E19: 客观监测 | F19: 社会效益 | G19: 居民收入分配格局监测保障性 | I19: 客观监测
C20: 可持续影响 | D20: 保障基础数据 | E20: 提供数据 | F20: 可持续影响 | G20: 保障基础数据 | I20: 提供数据
B21: 满意度 | C21: 服务对象 满意度 | D21: 工作人员满意度 | E21: ≥90% | F21: 服务对象 满意度 | G21: 工作人员满意度 | I21: ≥90%
D22: 人民群众满意度 | E22: ≥90% | G22: 人民群众满意度 | I22: ≥90%

Sheet 月度劳动力调查经费（8.21万元）
A1: 2023年兰州新区项目支出绩效目标申报表（参考模板）
A2: （2023年度）
A3: 项目名称 | D3: 月度劳动力调查经费
A4: 主管部门及代码 | D4: 兰州新区经济发展局（统计局） | F4: 实施单位 | H4: 兰州新区经济发展局（统计局）
A5: 项目属性 | D5: 延续项目 | F5: 项目期 | H5: 长期
A6: 项目资金 （万元） | D6: 中期资金总额： | E6: 24.63 | F6: 年度资金总额： | H6: 8.21
D7: 其中：财政拨款 | E7: 24.63 | F7: 其中：财政拨款 | H7: 8.21
D8: 其他资金 | F8: 其他资金
A9: 总体 目标 | B9: 中期目标（2023年—2025年） | F9: 年度目标
B10: 按照抽样调查的方式，每月开展一次，由调查员对国家抽中住户进行入户登记通过开展月度失业率统计调查工作，真实反映“保居民就业”工作成效和“实现更高质量和更充分的就业”目标完成情况，需要准确把握劳动力就业与失业的总量、结构和分布情况，更加及时了解劳动力市场出现的新情况、新变化、新问题。 | F10: 按照抽样调查的方式，每月开展一次，由调查员对国家抽中住户进行入户登记通过开展月度失业率统计调查工作，真实反映“保居民就业”工作成效和“实现更高质量和更充分的就业”目标完成情况，需要准确把握劳动力就业与失业的总量、结构和分布情况，更加及时了解劳动力市场出现的新情况、新变化、新问题。
A11: 绩效 指标 | B11: 一级指标 | C11: 二级指标 | D11: 三级指标 | E11: 指标值 | F11: 二级指标 | G11: 三级指标 | I11: 指标值
B12: 产出指标 | C12: 数量指标 | D12: 调查员补助发放人数 | E12: 6人/月 | F12: 数量指标 | G12: 调查员补助发放人数 | I12: 6人/月
D13: 调查户入户礼品采购及发放户数 | E13: 96户/月 | G13: 调查户入户礼品采购及发放户数 | I13: 96户/月
C14: 质量指标 | D14: 辅调员工作合格率 | E14: =100% -> 100% | F14: 质量指标 | G14: 辅调员工作合格率 | I14: =100% -> 100%
C15: 时效指标 | D15: 调查员补助发放及时性 | E15: 及时 | F15: 时效指标 | G15: 调查员补助发放及时性 | I15: 及时
D16: 调查户入户礼品发放及时性 | E16: 及时 | G16: 调查户入户礼品发放及时性 | I16: 及时
C17: 成本指标 | D17: 成本控制率 | E17: ≤100% | F17: 成本指标 | G17: 成本控制率 | I17: ≤100%
B18: 效益指标 | C18: 社会效益 | D18: 调查数据保障性 | E18: 完成 | F18: 社会效益 | G18: 调查数据保障性 | I18: 完成
C19: 可持续影响 | D19: 提高政府统计公信力 | E19: 完成 | F19: 可持续影响 | G19: 提高政府统计公信力 | I19: 完成
B20: 满意度 | C20: 服务对象 满意度 | D20: 工作人员满意度 | E20: ≥90% | F20: 服务对象 满意度 | G20: 工作人员满意度 | I20: ≥90%
D21: 人民群众满意度 | E21: ≥90% | G21: 人民群众满意度 | I21: ≥90%

Sheet 兰州新区第五次全国经济普查（262）
A1: 2023年兰州新区项目支出绩效目标申报表
A2: （ 2023 年度）
A3: 项目名称 | D3: 兰州新区第五次全国经济普查
A4: 主管部门及代码 | D4: 兰州新区经济发展局（统计局） | F4: 实施单位 | H4: 兰州新区经济发展局（统计局）
A5: 项目属性 | D5: 新增项目 | F5: 项目期 | H5: 3年
A6: 项目资金 （万元） | D6: 中期资金总额： | E6: 312 | F6: 年度资金总额： | H6: 262
D7: 其中：财政拨款 | E7: 312 | F7: 其中：财政拨款 | H7: 262
D8: 其他资金 | F8: 其他资金
A9: 总体目标 | B9: 中期目标（2023年—2025年） | F9: 年度目标
B10: 目标1：全面调查兰州新区第二产业和第三产业发展规模、布局和效益，摸清各类单位基本情况，掌握国民经济行业间经济联系，客观反映推动高质量发展、构建新发展格局、建设现代化经济体系、深化供给侧结构性改革以及创新驱动发展、区域协调发展、生态文明建设、高水平对外开放、公共服务体系建设等方面的新进展。通过普查，进一步夯实统计基础，推进统计现代化改革，为加强和改善宏观经济治理、科学制定中长期发展规划、全面建设社会主义现代化国家，提供科学准确的统计信息支持。 | F10: 目标1：举办业务培训会议2次，保障经济普查工作高效开展。 目标2：按每户10元标准发放普查单位宣传品，保障经济普查工作知晓度、社会支持度。 目标3：按每户20元标准及时发放普查员劳务补助，保障经济普查高效有序推进。
A11: 绩效指标 | B11: 一级指标 | C11: 二级指标 | D11: 三级指标 | E11: 指标值 | F11: 二级指标 | G11: 三级指标 | I11: 指标值
B12: 产出指标 | C12: 数量指标 | D12: 指标1：举办业务培训会议 | E12: 2次 | F12: 数量指标 | G12: 指标1：举办业务培训会议 | I12: 2次
D13: 指标2：发放普查单位宣传品 | E13: 10元/户 | G13: 指标2：发放普查单位宣传品 | I13: 10元/户
D14: 指标3：发放普查员劳务补助 | E14: 20元/户 | G14: 指标3：发放普查员劳务补助 | I14: 20元/户
C15: 质量指标 | D15: 指标1：普查登记合格率 | E15: 100% | F15: 质量指标 | G15: 指标1：普查登记合格率 | I15: 100%
C16: 时效指标 | D16: 指标1：普查业务培训完成及时性 | E16: 及时 | F16: 时效指标 | G16: 指标1：普查业务培训完成及时性 | I16: 及时
D17: 指标2：普查登记完成及时性 | E17: 及时 | G17: 指标2：普查登记完成及时性 | I17: 及时
D18: 指标3：普查员劳务补助发放及时性 | E18: 及时 | G18: 指标3：普查员劳务补助发放及时性 | I18: 及时
C19: 成本指标 | D19: 指标1：成本控制率 | E19: ≤100% | F19: 成本指标 | G19: 指标1：成本控制率 | I19: ≤100%
B20: 效益指标 | C20: 社会效益 | D20: 指标1：普查数据保障性 | E20: 保障 | F20: 社会效益 | G20: 指标1：普查数据保障性 | I20: 保障
C21: 可持续影响 | D21: 指标1：保障统计信息支持 | E21: 保障 | F21: 可持续影响 | G21: 指标1：保障统计信息支持 | I21: 保障
B22: 满意度 | C22: 服务对象 满意度 | D22: 工作人员满意度 | E22: ≥90% | F22: 服务对象 满意度 | G22: 工作人员满意度 | I22: ≥90%
D23: 人民群众满意度 | E23: ≥90% | G23: 人民群众满意度 | I23: ≥90%

Sheet 统计综合事务经费1
A1: 2023年兰州新区项目支出绩效目标申报表
A2: （ 2023 年度）
A3: 项目名称 | D3: 统计视频会议系统更新升级经费及专网租赁
A4: 主管部门及代码 | D4: 兰州新区经济发展局（统计局） | F4: 实施单位 | H4: 兰州新区经济发展局（统计局）
A5: 项目属性 | D5: 延续性项目 | F5: 项目期 | H5: 1年
A6: 项目资金 （万元） | D6: 中期资金总额： | E6: 0 | F6: 年度资金总额： | H6: =9.2+1.68 -> 10.88
D7: 其中：财政拨款 | E7: 0 | F7: 其中：财政拨款 | H7: =9.2+1.68 -> 10.88
D8: 其他资金 | F8: 其他资金
A9: 总体目标 | B9: 中期目标（20××年—20××+n年） | F9: 年度目标
B10: 目标1：保障视频会议系统稳定高效运行，加快统计现代化建设，持续推进统计现代化改革。 | F10: 目标1：本年新增视频会议系统1台，以保障机构正常运行。 目标2：本年新增高清电视机1台，以保障视频会议系统正常运行。
A11: 绩效指标 | B11: 一级指标 | C11: 二级指标 | D11: 三级指标 | E11: 指标值 | F11: 二级指标 | G11: 三级指标 | I11: 指标值
B12: 产出指标 | C12: 数量指标 | D12: 指标1：新增视频会议系统 | E12: 1台 | F12: 数量指标 | G12: 指标1：新增视频会议系统 | I12: 1台
D13: 指标2：新增高清电视机 | E13: 1台 | G13: 指标2：新增高清电视机 | I13: 1台
C14: 质量指标 | D14: 指标1：设备合格率 | E14: 100% | F14: 质量指标 | G14: 指标1：设备合格率 | I14: 100%
C15: 时效指标 | D15: 指标1：视频会议及时性 | E15: 及时 | F15: 时效指标 | G15: 指标1：视频会议及时性 | I15: 及时
C16: 成本指标 | D16: 指标1：成本控制率 | E16: ≤100% | F16: 成本指标 | G16: 指标1：成本控制率 | I16: ≤100%
D17: 指标2： | G17: 指标2：
C18: 社会效益 | D18: 指标1：保障会议系统稳定性 | E18: 保障 | F18: 社会效益 | G18: 指标1：保障会议系统稳定性 | I18: 保障
D19: 指标2：保障视频会议正常使用 | E19: 保障 | G19: 指标2：保障视频会议正常使用 | I19: 保障
C20: 可持续影响 | D20: 指标1：保障推进统计信息化建设 | E20: 保障 | F20: 可持续影响 | G20: 指标1：保障推进统计信息化建设 | I20: 保障
B21: 满意度 | C21: 服务对象 满意度 | D21: 指标1：工作人员满意度 | E21: ≧90% | F21: 服务对象 满意度 | G21: 指标1：工作人员满意度 | I21: ≧90%
D22: 指标2：人民群众满意度 | E22: ≧90% | G22: 指标2：人民群众满意度 | I22: ≧90%

Sheet 统计综合事务经费2
A1: 2023年兰州新区项目支出绩效目标申报表
A2: （ 2023 年度）
A3: 项目名称 | D3: 统计资料印刷费
A4: 主管部门及代码 | D4: 兰州新区经济发展局（统计局） | F4: 实施单位 | H4: 兰州新区经济发展局（统计局）
A5: 项目属性 | D5: 延续性项目 | F5: 项目期 | H5: 1年
A6: 项目资金 （万元） | D6: 中期资金总额： | E6: 9.6 | F6: 年度资金总额： | H6: 3.2
D7: 其中：财政拨款 | E7: 9.6 | F7: 其中：财政拨款 | H7: 3.2
D8: 其他资金 | F8: 其他资金
A9: 总体目标 | B9: 中期目标（20××年—20××+n年） | F9: 年度目标
B10: 目标1：收集汇总新区经济社会发展统计数据，满足社会各界需求。 | F10: 目标1：完成每季度150本《兰州新区综合统计信息》编印工作。
B11: 目标2：按年度编印《兰州新区发展统计年鉴》；按季度完成《兰州新区综合统计信息》编印。 | F11: 目标2：完成每年度200本《兰州新区发展统计年鉴》编印工作；
A12: 绩效指标 | B12: 一级指标 | C12: 二级指标 | D12: 三级指标 | E12: 指标值 | F12: 二级指标 | G12: 三级指标 | I12: 指标值
B13: 产出指标 | C13: 数量指标 | D13: 指标1：兰州新区发展统计年鉴 | E13: 200本/年 | F13: 数量指标 | G13: 指标1：兰州新区发展统计年鉴 | I13: 每年度200本
D14: 指标2：兰州新区综合统计信息 | E14: 150本/季度 | G14: 指标2：兰州新区综合统计信息 | I14: 每季度150本
C15: 质量指标 | D15: 指标1：发展统计年鉴符合印刷要求 | E15: 符合 | F15: 质量指标 | G15: 指标1：发展统计年鉴符合印刷要求 | I15: 符合
D16: 指标2：兰州新区综合统计信息符合印刷要求 | E16: 符合 | G16: 指标2：兰州新区综合统计信息符合印刷要求 | I16: 符合
C17: 时效指标 | D17: 指标1：发展统计年鉴按完成及时性 | E17: 及时 | F17: 时效指标 | G17: 指标1：发展统计年鉴按完成及时性 | I17: 及时
D18: 指标2：兰州新区综合统计信息完成及时性 | E18: 及时 | G18: 指标2：兰州新区综合统计信息完成及时性 | I18: 及时
C19: 成本指标 | D19: 指标1：成本控制率 | E19: ≤100% | F19: 成本指标 | G19: 指标1：成本控制率 | I19: ≤100%
C20: 社会效益 | D20: 指标1：保障新区历史数据查询 | E20: 保障 | F20: 社会效益 | G20: 指标1：保障新区历史数据查询 | I20: 保障
D21: 指标2：领导决策依据保障性 | E21: 保障 | G21: 指标2：领导决策依据保障性 | I21: 保障
C22: 可持续影响 | D22: 指标1：保障编印工作常态化 | E22: 保障 | F22: 可持续影响 | G22: 指标1：保障编印工作常态化 | I22: 保障
B23: 满意度 | C23: 服务对象 满意度 | D23: 指标1：阅读者满意 | E23: ≧90% | F23: 服务对象 满意度 | G23: 指标1：阅读者满意 | I23: ≧90%
D24: 指标2：领导满意度 | E24: ≧90% | G24: 指标2：领导满意度 | I24: ≧90%

Sheet 统计综合事务经费3
A1: 2023年兰州新区项目支出绩效目标申报表
A2: （ 2023 年度）
A3: 项目名称 | D3: 基本单位名录库维护经费
A4: 主管部门及代码 | D4: 兰州新区经济发展局（统计局） | F4: 实施单位 | H4: 兰州新区经济发展局（统计局）
A5: 项目属性 | D5: 新增项目 | F5: 项目期 | H5: 长期
A6: 项目资金 （万元） | D6: 中期资金总额： | E6: 4.5 | F6: 年度资金总额： | H6: 1.5
D7: 其中：财政拨款 | E7: 4.5 | F7: 其中：财政拨款 | H7: 1.5
D8: 其他资金 | F8: 其他资金
A9: 总体 目标 | B9: 中期目标（2023年—2025年） | F9: 年度目标
B10: 基本单位名录库作为统计“四大工程”之首，凸显了名录库建设的重要意义。它是改革后的统计调查的起点，是提高统计能力的基础，是提高数据质量的关键。基本单位维护更新时基本单位名录库的重要环节，是非普查年度开展常规性统计工作的重要基础。 | F10: 跟进新增、变更、注销单位1500户，保障名录库资料的质量。
A11: 绩效 指标 | B11: 一级指标 | C11: 二级指标 | D11: 三级指标 | E11: 指标值 | F11: 二级指标 | G11: 三级指标 | I11: 指标值
B12: 产出指标 | C12: 数量指标 | D12: 跟进新增、变更、注销单位1500户 | E12: 10元/户 | F12: 数量指标 | G12: 跟进新增、变更、注销单位1500户 | I12: 10元/户
C13: 质量指标 | D13: 登录数据信息合格率 | E13: ≥90% | F13: 质量指标 | G13: 登录数据信息合格率 | I13: ≥90%
C14: 时效指标 | D14: 调查员补助发放及时性 | E14: 及时 | F14: 时效指标 | G14: 调查员补助发放及时性 | I14: 及时
C15: 成本指标 | D15: 成本控制率 | E15: ≤100% | F15: 成本指标 | G15: 成本控制率 | I15: ≤100%
B16: 效益指标 | C16: 社会效益 | D16: 保障名录库信息健全性 | E16: 保障 | F16: 社会效益 | G16: 保障名录库信息健全性 | I16: 保障
C17: 可持续影响 | D17: 样本数据保障性 | E17: 保障 | F17: 可持续影响 | G17: 样本数据保障性 | I17: 保障
B18: 满意度 | C18: 服务对象 满意度 | D18: 工作人员满意度 | E18: ≥90% | F18: 服务对象 满意度 | G18: 工作人员满意度 | I18: ≥90%
D19: 人民群众满意度 | E19: ≥90% | G19: 人民群众满意度 | I19: ≥90%

Sheet 兰州新区2023年固定资产投资奖励资金（11720）
A1: 2023年兰州新区项目支出绩效目标申报表（参考模板）
A2: （2023年度）
A3: 项目名称 | D3: 兰州新区2023年固定资产投资奖励资金
A4: 主管部门及代码 | D4: 兰州新区经济发展局（统计局） | F4: 实施单位 | H4: 兰州新区经济发展局（统计局）
A5: 项目属性 | D5: 新增项目 | F5: 项目期 | H5: 长期
A6: 项目资金 （万元） | D6: 中期资金总额： | E6: 50000 | F6: 年度资金总额： | H6: 11720
D7: 其中：财政拨款 | E7: 50000 | F7: 其中：财政拨款 | H7: 11720
D8: 其他资金 | E8: 0 | F8: 其他资金 | H8: 0
A9: 总体目标 | B9: 中期目标（2023年—2025年） | F9: 年度目标
B10: 目标1：按照政策规定程序，及时为企业兑付固投奖励资金； | F10: 目标1：审核固投奖励资金企业10家以上。
B11: 目标2：发挥奖励资金引导作用，提升企业竞争力，推动企业稳产达效。 | F11: 目标2：兑付固投奖励资金1.2亿元。
B12: 目标3：加大招商引资力度，推进新区产业集聚发展。 | F12: 目标3：获得奖励资金的企业实现稳产达效。
A14: 绩效指标 | B14: 一级指标 | C14: 二级指标 | D14: 三级指标 | E14: 指标值 | F14: 二级指标 | G14: 三级指标 | I14: 指标值
B15: 产出指标 | C15: 数量指标 | D15: 指标1：审核固投奖励资金项目个数 | E15: ≥30 | F15: 数量指标 | G15: 指标1：审核固投奖励资金项目个数 | I15: ≥10
D16: 指标2：兑付固投奖励资金5亿元以上。 | E16: ≥5 | G16: 指标2：兑付固投奖励资金1亿元以上。 | I16: ≥1
C17: 质量指标 | D17: 指标1：兑付企业奖励资金政策符合性 | E17: 符合 | F17: 质量指标 | G17: 指标1：兑付企业奖励资金政策符合性 | I17: 符合
D18: 指标2：兑付流程合规性 | E18: 合规 | G18: 指标2：兑付流程合规性 | I18: 合规
C19: 时效指标 | D19: 指标1：拨付奖励资金及时性 | E19: 及时 | F19: 时效指标 | G19: 指标1：拨付奖励资金及时性 | I19: 及时
B20: 效益指标 | C20: 经济效益 | D20: 指标1：奖励企业实现产值增长率 | E20: 正增长 | F20: 经济效益 | G20: 指标1：奖励企业实现产值增长率 | I20: 正增长
D21: 指标2：奖励企业投产率 | E21: ≧90% | G21: 指标2：奖励企业投产率 | I21: ≧90%
D22: 指标3：促进本地区本行业发展 | E22: 有效 | G22: 指标3：促进本地区本行业发展 | I22: 有效
C23: 社会效益 | D23: 指标1：奖励企业实现新增就业人口（人） | E23: 正增长 | F23: 社会效益 | G23: 指标1：奖励企业实现新增就业人口（人） | I23: 正增长
D24: 指标2：奖励企业履行社会责任效果 | E24: 显著 | G24: 指标2：奖励企业履行社会责任效果 | I24: 显著
C25: 生态效益 | D25: 指标1：促进水电能源节约 | E25: 显著 | F25: 生态效益 | G25: 指标1：促进水电能源节约 | I25: 显著
C26: 可持续影响 | D26: 指标1：企业生产运行状况良好性 | E26: 良好 | F26: 可持续影响 | G26: 指标1：企业生产运行状况良好性 | I26: 良好
B27: 满意度 | C27: 服务对象 满意度 | D27: 指标1：受益企业满意度 | E27: ≧95% | F27: 服务对象 满意度 | G27: 指标1：受益企业满意度 | I27: ≧95%

Sheet 2021年奖励资金（280万）
A1: 2023年兰州新区项目支出绩效目标申报表（参考模板）
A2: （2023年度）
A3: 项目名称 | D3: 2021年奖励资金
A4: 主管部门及代码 | D4: 兰州新区经济发展局（统计局） | F4: 实施单位 | H4: 兰州新区经济发展局（统计局）
A5: 项目属性 | D5: 新增项目 | F5: 项目期 | H5: 长期
A6: 项目资金 （万元） | D6: 中期资金总额： | F6: 年度资金总额： | H6: 280
D7: 其中：财政拨款 | F7: 其中：财政拨款 | H7: 280
D8: 其他资金 | E8: 0 | F8: 其他资金 | H8: 0
A9: 总体目标 | B9: 中期目标（2023年—2025年） | F9: 年度目标
B10: 目标1：按照政策规定程序，及时为企业兑付奖励资金； | F10: 目标1：按照政策规定程序，及时为企业兑付奖励资金；
B11: 目标2：发挥奖励资金引导作用，提升企业竞争力，推动企业稳产达效。 | F11: 目标2：发挥奖励资金引导作用，提升企业竞争力，推动企业稳产达效。
B12: 目标3：加大招商引资力度，推进新区产业集聚发展。 | F12: 目标3：加大招商引资力度，推进新区产业集聚发展。
A14: 绩效指标 | B14: 一级指标 | C14: 二级指标 | D14: 三级指标 | E14: 指标值 | F14: 二级指标 | G14: 三级指标 | I14: 指标值
B15: 产出指标 | C15: 数量指标 | D15: 资金安排至三家企业 | E15: 1家 | F15: 数量指标 | G15: 资金安排至三家企业 | I15: ≥1
C16: 质量指标 | D16: 安排资金工作完成率 | E16: 100% | F16: 质量指标 | G16: 安排资金工作完成率 | I16: 100%
C17: 时效指标 | D17: 及时下达奖励资金 | E17: 及时 | F17: 时效指标 | G17: 及时下达奖励资金 | I17: 及时
C18: 成本指标 | D18: 成本控制额 | E18: 280万元 | F18: 成本指标 | G18: 成本控制额 | I18: 280万元
B19: 效益指标 | C19: 经济效益 | D19: 推动新区经济高质量发展 | E19: 推动 | F19: 经济效益 | G19: 推动新区经济高质量发展 | I19: 推动
C20: 社会效益 | D20: 做好国有企业示范引领 | E20: 有效引领 | F20: 社会效应 | G20: 做好国有企业示范引领 | I20: 有效引领
D21: 为新区高质量发展提供支撑 | E21: 有效提供 | G21: 为新区高质量发展提供支撑 | I21: 有效提供
C22: 生态效益 | D22: 有效提高生态环境质量 | E22: 有效提高 | F22: 生态效益 | G22: 有效提高生态环境质量 | I22: 有效提高
C23: 可持续影响 | D23: 持续推动经济社会高质量发展 | E23: 持续推动 | F23: 可持续影响 | G23: 持续推动经济社会高质量发展 | I23: 持续推动
B24: 满意度 | C24: 服务对象 满意度 | D24: 指标1：受益企业满意度 | E24: ≧95% | F24: 服务对象 满意度 | G24: 指标1：受益企业满意度 | I24: ≧95%

Sheet 2023年上规入库工业企业奖励（350）
A1: 2023年兰州新区项目支出绩效目标申报表（参考模板）
A2: （2023 年度）
A3: 项目名称 | D3: 2023年上规入库工业企业奖励
A4: 主管部门及代码 | F4: 实施单位 | H4: 兰州新区经济发展局（统计局）
A5: 项目属性 | D5: 奖励资金 | F5: 项目期 | H5: 2023年1月-12月
A6: 项目资金 （万元） | D6: 中期资金总额： | E6: 350 | F6: 年度资金总额： | H6: 350
D7: 其中：财政拨款 | E7: 350 | F7: 其中：财政拨款 | H7: 350
D8: 其他资金 | E8: / | F8: 其他资金 | H8: /
A9: 总体目标 | B9: 中期目标（2023年） | F9: 年度目标
B10: 目标1：拨付2022年上规入库企业10万元/户，总额350万元 | F10: 目标1：拨付2022年上规入库企业10万元/户，总额350万元
A11: 绩效指标 | B11: 一级指标 | C11: 二级指标 | D11: 三级指标 | E11: 指标值 | F11: 二级指标 | G11: 三级指标 | I11: 指标值
B12: 产出指标 | C12: 数量指标 | D12: 上规入库拨付企业数量 | E12: 35 | F12: 数量指标 | G12: 上规入库拨付企业数量 | I12: 35
C13: 质量指标 | D13: 拨付工作完成率 | E13: 100% | F13: 质量指标 | G13: 拨付工作完成率 | I13: 100%
C14: 时效指标 | D14: 工作开展及时性 | E14: 及时 | F14: 时效指标 | G14: 工作开展及时性 | I14: 及时
C15: 成本指标 | D15: 成本控制率 | E15: ≤100% | F15: 成本指标 | G15: 成本控制率 | I15: ≤100%
B16: 效益指标 | C16: 社会效益 | D16: 争取更多工业企业上规入库 | E16: 显著 | F16: 社会效益 | G16: 争取更多工业企业上规入库 | I16: 显著
C17: 可持续影响 | D17: 持续扩大规上工业经济总量 | E17: 显著 | F17: 可持续影响 | G17: 持续扩大规上工业经济总量 | I17: 显著
B18: 满意度 | C18: 规上工业企业满意度 | D18: 指标1：受益企业满意度 | E18: ≥90% | F18: 规上工业企业满意度 | G18: 指标1：受益企业满意度 | I18: ≥90%

Sheet 新能源汽车新级补贴资金（1200）
A1: 2023年兰州新区项目支出绩效目标申报表（参考模板）
A2: （2023 年度）
A3: 项目名称 | D3: 新能源汽车新级补贴资金
A4: 主管部门及代码 | F4: 实施单位 | H4: 兰州新区经济发展局（统计局）
A5: 项目属性 | D5: 延续项目 | F5: 项目期 | H5: 2023年1月-12月
A6: 项目资金 （万元） | D6: 中期资金总额： | E6: 1863.1 | F6: 年度资金总额： | H6: 1200
D7: 其中：财政拨款 | E7: 1863.1 | F7: 其中：财政拨款 | H7: 1200
D8: 其他资金 | E8: / | F8: 其他资金 | H8: /
A9: 总体目标 | B9: 中期目标（2023年） | F9: 年度目标
B10: 目标1：拨付新能源汽车新区级地方补贴资金1863.1万元。 | F10: 目标1：拨付新能源汽车新区级地方补贴资金1863.1万元。
A11: 绩效指标 | B11: 一级指标 | C11: 二级指标 | D11: 三级指标 | E11: 指标值 | F11: 二级指标 | G11: 三级指标 | I11: 指标值
B12: 产出指标 | C12: 数量指标 | D12: 补贴资金拨付企业数量 | E12: 2 | F12: 数量指标 | G12: 补贴资金拨付企业数量 | I12: 2
C13: 质量指标 | D13: 拨付工作完成率 | E13: ≥90% | F13: 质量指标 | G13: 拨付工作完成率 | I13: ≥90%
C14: 时效指标 | D14: 工作开展及时性 | E14: 及时 | F14: 时效指标 | G14: 工作开展及时性 | I14: 及时
C15: 成本指标 | D15: 成本控制率 | E15: ≤100% | F15: 成本指标 | G15: 成本控制率 | I15: ≤100%
B16: 效益指标 | C16: 社会效益 | D16: 带动就业增长率 | E16: 显著 | F16: 社会效益 | G16: 带动就业增长率 | I16: 显著
C17: 可持续影响 | D17: 对本行业未来可持续发展的影响 | E17: 显著 | F17: 可持续影响 | G17: 对本行业未来可持续发展的影响 | I17: 显著
B18: 满意度 | C18: 新能源企业象满意度 | D18: 指标1：受益企业满意度 | E18: ≥90% | F18: 新能源企业象满意度 | G18: 指标1：受益企业满意度 | I18: ≥90%

Sheet 《兰州新区新材料产业园总体规划》等编制（54）
A1: 2023年兰州新区项目支出绩效目标申报表（参考模板）
A2: （2023 年度）
A3: 项目名称 | D3: 《兰州新区新材料产业园总体规划》《兰州新区新材料产业园产业发展规划》编制
A4: 主管部门及代码 | F4: 实施单位 | H4: 兰州新区经济发展局（统计局）
A5: 项目属性 | D5: 延续项目 | F5: 项目期 | H5: 2022.5-2023.5
A6: 项目资金 （万元） | D6: 中期资金总额： | E6: 54 | F6: 年度资金总额： | H6: 54
D7: 其中：财政拨款 | E7: 54 | F7: 其中：财政拨款 | H7: 54
D8: 其他资金 | E8: / | F8: 其他资金 | H8: /
A9: 总体目标 | B9: 中期目标（2023年） | F9: 年度目标
B10: 目标1：拨付《兰州新区新材料产业园区产业规划》《兰州新区新材料产业园区总体规划》编制项目设计合同总额的30%，即人民币:540000.00元 | F10: 目标1：拨付《兰州新区新材料产业园区产业规划》《兰州新区新材料产业园区总体规划》编制项目设计合同总额的30%，即人民币:540000.00元
A11: 绩效指标 | B11: 一级指标 | C11: 二级指标 | D11: 三级指标 | E11: 指标值 | F11: 二级指标 | G11: 三级指标 | I11: 指标值
B12: 产出指标 | C12: 数量指标 | D12: 工作完成率 | E12: 编制完成《兰州新区新材料产业园总体规划》。 | F12: 数量指标 | G12: 工作完成率 | I12: 正式印发《兰州新区新材料产业园总体规划》
C13: 质量指标 | D13: 编制工作达标率 | E13: ≥90% | F13: 质量指标 | G13: 编制工作达标率 | I13: ≥90%
C14: 时效指标 | D14: 工作开展及时性 | E14: 及时 | F14: 时效指标 | G14: 工作开展及时性 | I14: 及时
C15: 成本指标 | D15: 成本控制率 | E15: ≤100% | F15: 成本指标 | G15: 成本控制率 | I15: ≤100%
B16: 效益指标 | C16: 社会效益 | D16: 促进新材料产业健康有序发展 | E16: 显著 | F16: 社会效益 | G16: 促进新材料产业健康有序发展 | I16: 显著
C17: 可持续影响 | D17: 引导新材料产业园区化发展 | E17: 显著 | F17: 可持续影响 | G17: 引导新材料产业园区化发展 | I17: 显著
B18: 满意度 | C18: 服务对象 满意度 | D18: 新材料行业企业满意度 | E18: ≥90% | F18: 服务对象 满意度 | G18: 新材料行业企业满意度 | I18: ≥90%

Sheet 重点企业电力专线建设项目（2500）
A1: 2023年兰州新区项目支出绩效目标申报表
A2: （ 2023 年度）
A3: 项目名称 | D3: 重点企业电力专线建设项目
A4: 主管部门及代码 | D4: 兰州新区经济发展局（统计局） | F4: 实施单位 | H4: 兰州新区市政投资管理集团有限公司
A5: 项目属性 | D5: 新增项目 | F5: 项目期 | H5: 2023.1.1.-2023.12.31.
A6: 项目资金 （万元） | D6: 中期资金总额： | E6: 15000 | F6: 年度资金总额： | H6: 2500
D7: 其中：财政拨款 | E7: 15000 | F7: 其中：财政拨款 | H7: 2500
D8: 其他资金 | E8: 0 | F8: 其他资金 | H8: 0
A9: 总体目标 | B9: 中期目标（2023年—2025年） | F9: 年度目标
B10: 目标1：完成项目电力专线建设 | F10: 目标1：完成项目电力专线建设
B11: 目标2：满足通电条件 | F11: 目标2：满足通电条件
B12: 目标3：进一步优化营商环境 | F12: 目标3：进一步优化营商环境
A13: 绩效指标 | B13: 一级指标 | C13: 二级指标 | D13: 三级指标 | E13: 指标值 | F13: 二级指标 | G13: 三级指标 | I13: 指标值
B14: 产出指标 | C14: 数量指标 | D14: 指标1：工程建设完成率 | E14: 100% | F14: 数量指标 | G14: 指标1：工程建设完成率 | I14: 100%
C15: 质量指标 | D15: 指标1：电力建设达标率 | E15: 合格 | F15: 质量指标 | G15: 指标1：电力建设达标率 | I15: 合格
C16: 时效指标 | D16: 指标1：工程建设及时率 | E16: 及时 | F16: 时效指标 | G16: 指标1：工程建设及时率 | I16: 及时
C17: 成本指标 | D17: 指标1：成本控制率 | E17: ≤100% | F17: 成本指标 | G17: 指标1：成本控制率 | I17: ≤100%
B18: 效益指标 | C18: 社会效益 | D18: 指标1：促进落地项目加快建成 | E18: 促进 | F18: 社会效益 | G18: 指标1：促进落地项目加快建成 | I18: 促进
D19: 指标2：营商环境优化 | E19: 提升营商环境 | G19: 指标2：营商环境优化 | I19: 提升营商环境
C20: 生态效益 | D20: 指标1：美化城市环境 | E20: 美化 | F20: 生态效益 | G20: 指标1：美化城市环境 | I20: 美化
B21: 满意度 | C21: 服务对象 满意度 | D21: 指标1：涉及专线企业满意度 | E21: ≥90% | F21: 服务对象 满意度 | G21: 指标1：涉及专线企业满意度 | I21: ≥90%

Sheet 2023年兰州新区重点企业节能检查26.24
A1: 2023年兰州新区项目支出绩效目标申报表
A2: （2023年度）
A3: 项目名称 | D3: 2023年度兰州新区重点用能企业节能监察
A4: 主管部门及代码 | F4: 实施单位 | H4: 兰州新区经济发展局（统计局）
A5: 项目属性 | D5: 延续类 | F5: 项目期 | H5: 2023年度
A6: 项目资金 （万元） | D6: 中期资金总额： | E6: 27.6 | F6: 年度资金总额： | H6: 26.24
D7: 其中：财政拨款 | E7: 27.6 | F7: 其中：财政拨款 | H7: 26.24
D8: 其他资金 | F8: 其他资金
A9: 总体 目标 | B9: 中期目标（2023年—2023+n年） | F9: 年度目标
B10: 按照年度计划，完成计划企业数的节能监察。 | F10: 完成30家企业节能监察
A11: 绩效 指标 | B11: 一级指标 | C11: 二级指标 | D11: 三级指标 | E11: 指标值 | F11: 二级指标 | G11: 三级指标 | I11: 指标值
B12: 产出指标 | C12: 数量指标 | D12: 完成重点能耗企业节能监察数量 | E12: 预计30个 | F12: 数量指标 | G12: 完成重点能耗企业节能监察数量 | I12: 预计30个
C13: 质量指标 | D13: 出具的节能监察报告 | E13: 合格 | F13: 质量指标 | G13: 出具的节能监察报告 | I13: 合格
D14: 企业能效标准 | E14: 达到国家或行业要求 | G14: 企业能效标准 | I14: 达到国家或行业要求
C15: 时效指标 | D15: 按期完成节能监察工作 | E15: 按时 | F15: 时效指标 | G15: 按期完成节能监察工作 | I15: 按时
C16: 成本指标 | D16: 预算资金使用率 | E16: ≤100% | F16: 成本指标 | G16: 预算资金使用率 | I16: ≤100%
B17: 效益指标 | C17: 经济效益 | D17: 能源利用效率 | E17: 提高 | F17: 经济效益 | G17: 能源利用效率 | I17: 提高
C18: 社会效益 | D18: 新区能耗总量和强度 | E18: 控制 | F18: 社会效益 | G18: 新区能耗总量和强度 | I18: 控制
D19: 新区投产企业能耗符合行业标准 | E19: 符合 | F19: 指标 | G19: 新区投产企业能耗符合行业标准 | I19: 符合
D20: 企业能耗强度 | E20: 降低 | G20: 企业能耗强度 | I20: 降低
C21: 生态效益 | D21: 能耗排放达标 | E21: 达标 | F21: 生态效益 | G21: 能耗排放达标 | I21: 达标
C22: 可持续影响 | D22: 控制新区能耗指标在下达指标范围内 | E22: 控制 | F22: 可持续影响 | G22: 控制新区能耗指标在下达指标范围内 | I22: 控制
D23: 能源消费合理增长 | E23: 合理 | F23: 指标 | G23: 能源消费合理增长 | I23: 合理
B24: 满意度 | C24: 服务对象 满意度 | D24: 人民群众满意度 | E24: ≥90% | F24: 服务对象 满意度 | G24: 人民群众满意度 | I24: ≥90%
D25: 企业满意度 | E25: ≥90% | G25: 企业满意度 | I25: ≥90%

Sheet 2023年度电力、通信设施迁改（650）
A1: 2023年兰州新区项目支出绩效目标申报表（参考模板）
A2: （ 2023 年度）
A3: 项目名称 | D3: 2023年度电力、通信设施迁改
A4: 主管部门及代码 | D4: 兰州新区经济发展局（统计局） | F4: 实施单位 | H4: 兰州新区市政投资管理集团有限公司
A5: 项目属性 | D5: 新增项目 | F5: 项目期 | H5: 2023.1.1.-2023.12.31.
A6: 项目资金 （万元） | D6: 中期资金总额： | E6: 3000 | F6: 年度资金总额： | H6: 650
D7: 其中：财政拨款 | E7: 3000 | F7: 其中：财政拨款 | H7: 650
D8: 其他资金 | E8: 0 | F8: 其他资金 | H8: 0
A9: 总体 目标 | B9: 中期目标（2023年—2025年） | F9: 年度目标
B10: 目标1：完成2023-2025年度影响落地项目建设的电力、通信线路迁改 | F10: 目标1：完成2023年度影响落地项目建设的电力、通信线路迁改
B11: 目标2：为招商引资项目顺利开展建设提供便利条件 | F11: 目标2：为招商引资项目顺利开展建设提供便利条件
B12: 目标3：进一步优化营商环境 | F12: 目标3：进一步优化营商环境
A13: 绩效 指标 | B13: 一级指标 | C13: 二级指标 | D13: 三级指标 | E13: 指标值 | F13: 二级指标 | G13: 三级指标 | I13: 指标值
B14: 产出指标 | C14: 数量指标 | D14: 指标1：迁改工程完成率 | E14: 100% | F14: 数量指标 | G14: 指标1：迁改工程完成率 | I14: 100%
C15: 质量指标 | D15: 指标1：电力迁改达标率 | E15: 合格 | F15: 质量指标 | G15: 指标1：电力迁改达标率 | I15: 合格
C16: 时效指标 | D16: 指标1：迁改工程及时率 | E16: 及时 | F16: 时效指标 | G16: 指标1：迁改工程及时率 | I16: 及时
C17: 成本指标 | D17: 指标1：成本控制率 | E17: ≤100% | F17: 成本指标 | G17: 指标1：成本控制率 | I17: ≤100%
B18: 效益指标 | C18: 社会效益 | D18: 指标1：促进落地项目加快建成 | E18: 促进 | F18: 社会效益 | G18: 指标1：促进落地项目加快建成 | I18: 促进
D19: 指标2：营商环境优化 | E19: 提升营商环境 | G19: 指标2：营商环境优化 | I19: 提升营商环境
C20: 生态效益 | D20: 指标1：美化城市环境 | E20: 美化 | F20: 生态效益 | G20: 指标1：美化城市环境 | I20: 美化
B21: 满意度 | C21: 服务对象 满意度 | D21: 指标1：涉及迁改企业满意度 | E21: ≥90% | F21: 服务对象 满意度 | G21: 指标1：涉及迁改企业满意度 | I21: ≥90%

Sheet 兰州新区碳达峰碳中和政策体系（77.82）
A1: 2023年兰州新区项目支出绩效目标申报表
A2: （2023年度）
A3: 项目名称 | D3: 兰州新区碳达峰碳中和政策体系
A4: 主管部门及代码 | F4: 实施单位 | H4: 兰州新区经济发展局 （统计局）
A5: 项目属性 | D5: 延续类 | F5: 项目期 | H5: 2023年度
A6: 项目资金 （万元） | D6: 中期资金总额： | F6: 年度资金总额： | H6: 77.82
D7: 其中：财政拨款 | F7: 其中：财政拨款 | H7: 77.82
D8: 其他资金 | F8: 其他资金 | H8: 0
A9: 总体 目标 | B9: 中期目标（2023年—2023+n年） | F9: 年度目标
B10: / | F10: 按照合同约定,完成剩余资金(77.82万元）拨付。
A11: 绩效 指标 | B11: 一级指标 | C11: 二级指标 | D11: 三级指标 | E11: 指标值 | F11: 二级指标 | G11: 三级指标 | H11: 指标值
B12: 产出指标 | C12: 数量指标 | F12: 数量指标 | G12: 按照约定，完成约定的实施方案通过审核 | H12: 5
C13: 质量指标 | F13: 质量指标 | G13: 编制的碳达峰碳中和政策体系质量 | H13: 合格
C14: 时效指标 | F14: 时效指标 | G14: 按期完成碳达峰碳中和政策体系剩余资金拨付工作 | H14: 按时
C15: 成本指标 | F15: 成本指标 | G15: 预算资金使用率 | H15: 100%
B16: 效益指标 | C16: 经济效益 | F16: 经济效益 | G16: 单位产值能耗 | H16: 下降
C17: 社会效益 | F17: 社会效益 | G17: 可持续发展能力 | H17: 增强
G18: 绿色低碳技术 | H18: 推广
G19: 能源利用效率 | H19: 提高
C20: 生态效益 | F20: 生态效益 | G20: 生态环境质量 | H20: 变好
C21: 可持续影响 | F21: 可持续影响 | G21: / | H21: /
B22: 满意度 | C22: 服务对象 满意度 | F22: 服务对象 满意度 | G22: 人民群众满意度 | H22: ≥90%
G23: 企业满意度 | H23: ≥90%

Sheet 甘肃省经及社会发展展览馆运营费（200）
A1: 2023年兰州新区项目支出绩效目标申报表（参考模板）
A2: （ 2023 年度）
A3: 项目名称 | D3: 甘肃省经及社会发展展览馆运营费
A4: 主管部门及代码 | D4: 兰州新区经济发展局（统计局） | F4: 实施单位 | H4: 甘肃省经及社会发展展览馆
A5: 项目属性 | D5: 延续项目 | F5: 项目期 | H5: 1年
A6: 项目资金 （万元） | D6: 中期资金总额： | E6: 200 | F6: 年度资金总额： | H6: 200
D7: 其中：财政拨款 | E7: 200 | F7: 其中：财政拨款 | H7: 200
D8: 其他资金 | F8: 其他资金
A9: 总体目标 | B9: 中期目标（2023年） | F9: 年度目标
B10: 目标1：按照新区管委会要求完成当年重大展览布展、讲解工作 | F10: 目标1：完成一次年度重要时政性主题展览，宣传覆盖兰州新区各企事业单位。
B11: 目标2：支付展览馆日常运营中产生的人员工资、设施设备维护更新、水电等费用。 | F11: 目标2：支付展览馆日常运营中产生的人员工资、设施设备维护更新、水电等费用
B12: 目标3：为固定资产投资增长提供有力支撑 | F12: 目标3：为固定资产投资增长提供有力支撑
A13: 绩效指标 | B13: 一级指标 | C13: 二级指标 | D13: 三级指标 | E13: 指标值 | F13: 二级指标 | G13: 三级指标 | I13: 指标值
B14: 产出指标 | C14: 数量指标 | D14: 指标1：接待团队数量 | E14: 1000个 | F14: 数量指标 | G14: 指标1：接待团队数量 | I14: 1000个
D15: 指标2：党建活动 | E15: 500场 | G15: 指标2：党建活动 | I15: 500场
D16: 指标3：校外实践活动 | E16: 50场 | G16: 指标3：校外实践活动 | I16: 50场
C17: 质量指标 | D17: 指标1：讲解接待合格率 | E17: 100% | F17: 质量指标 | G17: 指标1：讲解接待合格率 | I17: 100%
C18: 时效指标 | D18: 指标1：按时接待讲解 | E18: 100% | F18: 时效指标 | G18: 指标1：按时接待讲解 | I18: 100%
C19: 成本指标 | D19: 指标1：成本控制率 | E19: ≤100% | F19: 成本指标 | G19: 指标1：成本控制率 | I19: ≤100%
B20: 效益指标 | C20: 社会效益 | D20: 指标1：提高党建活动频率 | E20: ≥50% | F20: 社会效益 | G20: 指标1：提高党建活动频率 | I20: ≥50%
D21: 指标2：为新区高质量发展提供展示平台 | E21: 有效提供 | G21: 指标2：为新区高质量发展提供展示平台 | I21: 有效提供
C22: 可持续影响 | D22: 指标1：持续性宣传讲解，不断扩大受众范围 | E22: 100% | F22: 可持续影响 | G22: 指标1：持续性宣传讲解，不断扩大受众范围 | I22: 100%
D23: 指标2：持续扩大有效投资。 | E23: 固定资产投资增速10% | G23: 指标2：持续扩大有效投资。 | I23: 固定资产投资增速10%
B24: 满意度 | C24: 服务对象 满意度 | D24: 指标1：企事业单位党建活动满意度 | E24: ≥95% | F24: 服务对象 满意度 | G24: 指标1：企事业单位党建活动满意度 | I24: ≥95%
D25: 指标2：游客满意度 | E25: ≥95% | G25: 指标2：游客满意度 | I25: ≥95%
